[Event "Titled Tuesday Blitz April 12 Early 2022"]
[White "Esipenko, Andrey"]
[Black "Grischuk, Alexander"]
[WhiteFideId "24175439"]
[BlackFideId "4126025"]
[WhiteElo "2617"]
[BlackElo "2762"]
[Result "1-0"]
[Round "11"]
[TimeControl "180+1"]
[Date "2022.04.12"]
[WhiteClock "0:00:42"]
[BlackClock "0:00:01"]

1. d4 {[%clk 0:02:59]}  e6 {[%clk 0:02:58]} 2. c4 {[%clk 0:02:57]}  b6 {[%clk 0:02:59]} 3. a3 {[%clk 0:02:54]}  Bb7 {[%clk 0:02:57]} 4. Nc3 {[%clk 0:02:55]}  f5 {[%clk 0:02:57]} 5. Bf4 {[%clk 0:02:51]}  Nf6 {[%clk 0:02:56]} 6. e3 {[%clk 0:02:50]}  Be7 {[%clk 0:02:54]} 7. Nf3 {[%clk 0:02:50]}  Nh5 {[%clk 0:02:41]} 8. Be2 {[%clk 0:02:24]}  O-O {[%clk 0:02:36]} 9. O-O {[%clk 0:02:24]}  Nxf4 {[%clk 0:02:33]} 10. exf4 {[%clk 0:02:24]}  Bf6 {[%clk 0:02:34]} 11. Re1 {[%clk 0:02:19]}  Na6 {[%clk 0:02:07]} 12. Qd2 {[%clk 0:02:08]}  c5 {[%clk 0:01:54]} 13. d5 {[%clk 0:02:05]}  Nc7 {[%clk 0:01:54]} 14. d6 {[%clk 0:01:58]}  Ne8 {[%clk 0:01:54]} 15. Ne5 {[%clk 0:01:58]}  Bxe5 {[%clk 0:01:45]} 16. fxe5 {[%clk 0:01:58]}  g5 {[%clk 0:01:46]} 17. Bf3 {[%clk 0:01:29]}  Bxf3 {[%clk 0:01:44]} 18. gxf3 {[%clk 0:01:30]}  Ng7 {[%clk 0:01:38]} 19. Kh1 {[%clk 0:01:30]}  h6 {[%clk 0:01:11]} 20. Rg1 {[%clk 0:01:26]}  Kh7 {[%clk 0:01:12]} 21. h3 {[%clk 0:00:53]}  Qc8 {[%clk 0:00:59]} 22. Kh2 {[%clk 0:00:51]}  Qc6 {[%clk 0:00:58]} 23. f4 {[%clk 0:00:49]}  gxf4 {[%clk 0:00:07]} 24. Qxf4 {[%clk 0:00:50]}  Rg8 {[%clk 0:00:02]} 25. Qh4 {[%clk 0:00:42]}  Qf3 {[%clk 0:00:02]} 26. Rg5 {[%clk 0:00:42]}  Kh8 {[%clk 0:00:01]} 1-0


[Site "https://www.chess.com"]

[Event "Titled Tuesday Blitz April 12 Early 2022"]
[White "Ferreira, Vitor Hugo Vieira"]
[Black "Papp, Levente"]
[WhiteFideId "2119765"]
[BlackFideId "751243"]
[WhiteElo "2165"]
[BlackElo "2308"]
[Result "1-0"]
[Round "11"]
[TimeControl "180+1"]
[Date "2022.04.13"]
[WhiteClock "0:01:20"]
[BlackClock "0:00:05"]

1. d4 {[%clk 0:03:00]}  e6 {[%clk 0:02:56]} 2. c4 {[%clk 0:02:59]}  d5 {[%clk 0:02:56]} 3. Nc3 {[%clk 0:02:59]}  c6 {[%clk 0:02:56]} 4. e3 {[%clk 0:02:57]}  Nf6 {[%clk 0:02:56]} 5. Nf3 {[%clk 0:02:57]}  Nbd7 {[%clk 0:02:56]} 6. Qc2 {[%clk 0:02:57]}  Bd6 {[%clk 0:02:56]} 7. b3 {[%clk 0:02:58]}  Qe7 {[%clk 0:02:55]} 8. Be2 {[%clk 0:02:58]}  O-O {[%clk 0:02:55]} 9. O-O {[%clk 0:02:58]}  b6 {[%clk 0:02:55]} 10. Bb2 {[%clk 0:02:58]}  Bb7 {[%clk 0:02:56]} 11. Rfe1 {[%clk 0:02:58]}  Rac8 {[%clk 0:02:56]} 12. Rad1 {[%clk 0:02:58]}  Rfd8 {[%clk 0:02:55]} 13. e4 {[%clk 0:02:57]}  Bb4 {[%clk 0:02:41]} 14. e5 {[%clk 0:02:52]}  Ne4 {[%clk 0:02:41]} 15. Nxe4 {[%clk 0:02:52]}  dxe4 {[%clk 0:02:26]} 16. Qxe4 {[%clk 0:02:36]}  Bxe1 {[%clk 0:02:24]} 17. Rxe1 {[%clk 0:02:37]}  Nf8 {[%clk 0:02:15]} 18. c5 {[%clk 0:02:27]}  b5 {[%clk 0:01:36]} 19. Bc1 {[%clk 0:02:23]}  h6 {[%clk 0:01:20]} 20. Qg4 {[%clk 0:02:21]}  Kh8 {[%clk 0:01:17]} 21. Bd3 {[%clk 0:02:20]}  Nh7 {[%clk 0:00:58]} 22. Qh5 {[%clk 0:02:14]}  Rc7 {[%clk 0:00:43]} 23. Re4 {[%clk 0:02:03]}  f5 {[%clk 0:00:37]} 24. exf6 {[%clk 0:01:54]}  Nxf6 {[%clk 0:00:36]} 25. Qg6 {[%clk 0:01:54]}  Qf7 {[%clk 0:00:32]} 26. Qg3 {[%clk 0:01:45]}  Nxe4 {[%clk 0:00:26]} 27. Bxe4 {[%clk 0:01:46]}  Kg8 {[%clk 0:00:08]} 28. h4 {[%clk 0:01:39]}  e5 {[%clk 0:00:07]} 29. Nxe5 {[%clk 0:01:37]}  Qh5 {[%clk 0:00:07]} 30. Ng4 {[%clk 0:01:28]}  Kh8 {[%clk 0:00:06]} 31. Qxc7 {[%clk 0:01:25]}  Rxd4 {[%clk 0:00:05]} 32. Qb8+ {[%clk 0:01:20]} 1-0


[Site "https://www.chess.com"]

[Event "Titled Tuesday Blitz April 12 Early 2022"]
[White "Golubeva, Oksana"]
[Black "Piesik, Piotr"]
[WhiteFideId "4170164"]
[BlackFideId "1136194"]
[WhiteElo "2162"]
[BlackElo "2190"]
[Result "1-0"]
[Round "11"]
[TimeControl "180+1"]
[Date "2022.04.13"]
[WhiteClock "0:02:22"]
[BlackClock "0:01:44"]

1. Nf3 {[%clk 0:03:00]}  g6 {[%clk 0:02:34]} 2. e3 {[%clk 0:03:00]}  Bg7 {[%clk 0:02:33]} 3. d4 {[%clk 0:03:01]}  d6 {[%clk 0:02:34]} 4. b3 {[%clk 0:03:01]}  Nd7 {[%clk 0:02:34]} 5. Bb2 {[%clk 0:03:01]}  Ngf6 {[%clk 0:02:34]} 6. Nbd2 {[%clk 0:03:01]}  O-O {[%clk 0:02:34]} 7. Nc4 {[%clk 0:02:59]}  a5 {[%clk 0:02:31]} 8. a4 {[%clk 0:02:59]}  b6 {[%clk 0:02:31]} 9. Be2 {[%clk 0:02:58]}  Bb7 {[%clk 0:02:31]} 10. O-O {[%clk 0:02:59]}  Re8 {[%clk 0:02:30]} 11. Re1 {[%clk 0:02:58]}  e5 {[%clk 0:02:29]} 12. dxe5 {[%clk 0:02:57]}  Ng4 {[%clk 0:02:29]} 13. exd6 {[%clk 0:02:54]}  Bxb2 {[%clk 0:02:29]} 14. Nxb2 {[%clk 0:02:53]}  Ndf6 {[%clk 0:02:20]} 15. Nc4 {[%clk 0:02:49]}  Ne4 {[%clk 0:02:06]} 16. dxc7 {[%clk 0:02:27]}  Qxc7 {[%clk 0:02:07]} 17. Qd4 {[%clk 0:02:26]}  Nexf2 {[%clk 0:01:52]} 18. Qxb6 {[%clk 0:02:22]}  Qxb6 {[%clk 0:01:48]} 19. Nxb6 {[%clk 0:02:23]}  Ne4 {[%clk 0:01:44]} 20. Nxa8 {[%clk 0:02:22]} 1-0


[Site "https://www.chess.com"]

[Event "Titled Tuesday Blitz April 12 Early 2022"]
[White "Goryachkina, Aleksandra"]
[Black "Kostiukov, Alexandr"]
[WhiteFideId "4147103"]
[BlackFideId "14108100"]
[WhiteElo "2426"]
[BlackElo "2202"]
[Result "1/2-1/2"]
[Round "11"]
[TimeControl "180+1"]
[Date "2022.04.13"]
[WhiteClock "0:00:11"]
[BlackClock "0:00:19"]

1. e4 {[%clk 0:02:59]}  c5 {[%clk 0:02:48]} 2. Nf3 {[%clk 0:02:59]}  g6 {[%clk 0:02:49]} 3. c3 {[%clk 0:02:58]}  Bg7 {[%clk 0:02:48]} 4. d4 {[%clk 0:02:58]}  cxd4 {[%clk 0:02:48]} 5. cxd4 {[%clk 0:02:59]}  d5 {[%clk 0:02:49]} 6. e5 {[%clk 0:02:59]}  Nc6 {[%clk 0:02:48]} 7. Bb5 {[%clk 0:02:57]}  Bg4 {[%clk 0:02:47]} 8. Nc3 {[%clk 0:02:52]}  Nh6 {[%clk 0:02:47]} 9. h3 {[%clk 0:02:42]}  Bxf3 {[%clk 0:02:46]} 10. Qxf3 {[%clk 0:02:42]}  Nf5 {[%clk 0:02:43]} 11. Be3 {[%clk 0:02:29]}  O-O {[%clk 0:02:41]} 12. Rd1 {[%clk 0:02:24]}  e6 {[%clk 0:02:33]} 13. O-O {[%clk 0:02:15]}  f6 {[%clk 0:02:27]} 14. exf6 {[%clk 0:02:00]}  Bxf6 {[%clk 0:02:21]} 15. Bxc6 {[%clk 0:01:42]}  bxc6 {[%clk 0:02:21]} 16. Qe2 {[%clk 0:01:32]}  Rb8 {[%clk 0:02:08]} 17. Na4 {[%clk 0:01:25]}  Rb4 {[%clk 0:02:05]} 18. Nc5 {[%clk 0:01:24]}  Qd6 {[%clk 0:02:00]} 19. b3 {[%clk 0:01:14]}  Bxd4 {[%clk 0:01:42]} 20. Bxd4 {[%clk 0:00:59]}  Rxd4 {[%clk 0:01:25]} 21. Qxe6+ {[%clk 0:00:45]}  Qxe6 {[%clk 0:01:21]} 22. Nxe6 {[%clk 0:00:46]}  Rxd1 {[%clk 0:01:10]} 23. Rxd1 {[%clk 0:00:47]}  Re8 {[%clk 0:01:10]} 24. Nf4 {[%clk 0:00:47]}  g5 {[%clk 0:01:04]} 25. Nd3 {[%clk 0:00:46]}  Re2 {[%clk 0:01:03]} 26. Nb4 {[%clk 0:00:46]}  Re6 {[%clk 0:00:59]} 27. Kf1 {[%clk 0:00:45]}  Kf7 {[%clk 0:00:58]} 28. Nd3 {[%clk 0:00:39]}  Ke7 {[%clk 0:00:55]} 29. Rc1 {[%clk 0:00:37]}  Kd6 {[%clk 0:00:54]} 30. Rc5 {[%clk 0:00:34]}  Re7 {[%clk 0:00:53]} 31. Ra5 {[%clk 0:00:33]}  Nd4 {[%clk 0:00:52]} 32. Ra4 {[%clk 0:00:27]}  Nb5 {[%clk 0:00:46]} 33. Rg4 {[%clk 0:00:24]}  h6 {[%clk 0:00:45]} 34. h4 {[%clk 0:00:24]}  Re4 {[%clk 0:00:40]} 35. Rxe4 {[%clk 0:00:19]}  dxe4 {[%clk 0:00:40]} 36. Nb4 {[%clk 0:00:16]}  Nd4 {[%clk 0:00:35]} 37. hxg5 {[%clk 0:00:15]}  hxg5 {[%clk 0:00:36]} 38. Ke1 {[%clk 0:00:14]}  Kc5 {[%clk 0:00:32]} 39. Na6+ {[%clk 0:00:11]}  Kb6 {[%clk 0:00:32]} 40. Nb8 {[%clk 0:00:10]}  Kc7 {[%clk 0:00:31]} 41. Na6+ {[%clk 0:00:11]}  Kb6 {[%clk 0:00:28]} 42. Nb8 {[%clk 0:00:11]}  Kc7 {[%clk 0:00:18]} 43. Na6+ {[%clk 0:00:11]}  Kb6 {[%clk 0:00:19]} 1/2-1/2


[Site "https://www.chess.com"]

[Event "Titled Tuesday Blitz April 12 Early 2022"]
[White "Grandelius, Nils"]
[Black "Hess, Robert"]
[WhiteFideId "1710400"]
[BlackFideId "2022036"]
[WhiteElo "2617"]
[BlackElo "2557"]
[Result "1-0"]
[Round "11"]
[TimeControl "180+1"]
[Date "2022.04.12"]
[WhiteClock "0:00:07"]
[BlackClock "0:00:01"]

1. d4 {[%clk 0:03:00]}  g6 {[%clk 0:02:57]} 2. Nf3 {[%clk 0:02:57]}  Bg7 {[%clk 0:02:57]} 3. g3 {[%clk 0:02:57]}  e6 {[%clk 0:02:58]} 4. Bg2 {[%clk 0:02:58]}  Ne7 {[%clk 0:02:59]} 5. O-O {[%clk 0:02:58]}  d6 {[%clk 0:02:58]} 6. c4 {[%clk 0:02:59]}  Nd7 {[%clk 0:02:58]} 7. Nc3 {[%clk 0:03:00]}  h6 {[%clk 0:02:59]} 8. e4 {[%clk 0:03:00]}  b6 {[%clk 0:02:59]} 9. e5 {[%clk 0:02:52]}  Bb7 {[%clk 0:02:54]} 10. exd6 {[%clk 0:02:51]}  cxd6 {[%clk 0:02:55]} 11. Nb5 {[%clk 0:02:48]}  Nf6 {[%clk 0:02:55]} 12. Bf4 {[%clk 0:02:42]}  Nf5 {[%clk 0:02:55]} 13. c5 {[%clk 0:02:33]}  bxc5 {[%clk 0:02:40]} 14. dxc5 {[%clk 0:02:33]}  e5 {[%clk 0:02:40]} 15. Bd2 {[%clk 0:02:10]}  dxc5 {[%clk 0:02:04]} 16. Nxe5 {[%clk 0:01:27]}  Bxg2 {[%clk 0:02:05]} 17. Kxg2 {[%clk 0:01:27]}  O-O {[%clk 0:02:04]} 18. Bc3 {[%clk 0:01:22]}  Qb6 {[%clk 0:01:54]} 19. Na3 {[%clk 0:01:22]}  Ne4 {[%clk 0:01:48]} 20. Nac4 {[%clk 0:01:20]}  Qb7 {[%clk 0:01:18]} 21. Qf3 {[%clk 0:01:14]}  Rab8 {[%clk 0:00:55]} 22. Rfe1 {[%clk 0:00:55]}  Nxc3 {[%clk 0:00:44]} 23. bxc3 {[%clk 0:00:54]}  Qxf3+ {[%clk 0:00:21]} 24. Kxf3 {[%clk 0:00:55]}  Rfe8 {[%clk 0:00:21]} 25. Rad1 {[%clk 0:00:53]}  Bxe5 {[%clk 0:00:18]} 26. Rxe5 {[%clk 0:00:54]}  Rxe5 {[%clk 0:00:18]} 27. Nxe5 {[%clk 0:00:55]}  Rb6 {[%clk 0:00:11]} 28. Rd8+ {[%clk 0:00:46]}  Kg7 {[%clk 0:00:11]} 29. Rd7 {[%clk 0:00:47]}  Rf6 {[%clk 0:00:11]} 30. Kg2 {[%clk 0:00:45]}  Re6 {[%clk 0:00:07]} 31. Nxf7 {[%clk 0:00:36]}  Kf8 {[%clk 0:00:08]} 32. Nd8 {[%clk 0:00:31]}  Ra6 {[%clk 0:00:07]} 33. Nb7 {[%clk 0:00:18]}  Rxa2 {[%clk 0:00:06]} 34. Nxc5 {[%clk 0:00:18]}  h5 {[%clk 0:00:05]} 35. Kf3 {[%clk 0:00:16]}  a5 {[%clk 0:00:03]} 36. Ra7 {[%clk 0:00:16]}  Rc2 {[%clk 0:00:04]} 37. Ne6+ {[%clk 0:00:14]}  Kg8 {[%clk 0:00:03]} 38. Rxa5 {[%clk 0:00:13]}  Rxc3+ {[%clk 0:00:04]} 39. Kf4 {[%clk 0:00:14]}  Rc2 {[%clk 0:00:04]} 40. Kg5 {[%clk 0:00:14]}  Rxf2 {[%clk 0:00:04]} 41. Ra7 {[%clk 0:00:08]}  h4 {[%clk 0:00:01]} 42. Kxg6 {[%clk 0:00:07]} 1-0


[Site "https://www.chess.com"]

[Event "Titled Tuesday Blitz April 12 Early 2022"]
[White "Gunina, Valentina"]
[Black "Hua, Lefong"]
[WhiteFideId "4167570"]
[BlackFideId "2602253"]
[WhiteElo "2381"]
[BlackElo "2586"]
[Result "1-0"]
[Round "11"]
[TimeControl "180+1"]
[Date "2022.04.12"]
[WhiteClock "0:01:31"]
[BlackClock "0:00:40"]

1. d4 {[%clk 0:03:00]}  Nf6 {[%clk 0:02:59]} 2. c4 {[%clk 0:03:01]}  c5 {[%clk 0:02:58]} 3. d5 {[%clk 0:03:01]}  e6 {[%clk 0:02:59]} 4. Nc3 {[%clk 0:03:01]}  exd5 {[%clk 0:02:59]} 5. cxd5 {[%clk 0:03:02]}  d6 {[%clk 0:03:00]} 6. Nf3 {[%clk 0:03:02]}  g6 {[%clk 0:03:01]} 7. Bf4 {[%clk 0:03:02]}  a6 {[%clk 0:03:01]} 8. a4 {[%clk 0:03:02]}  Bg7 {[%clk 0:03:01]} 9. e3 {[%clk 0:03:02]}  O-O {[%clk 0:03:00]} 10. h3 {[%clk 0:03:03]}  Ne8 {[%clk 0:02:59]} 11. Be2 {[%clk 0:03:04]}  Nd7 {[%clk 0:03:00]} 12. O-O {[%clk 0:03:04]}  Qe7 {[%clk 0:02:59]} 13. Qb3 {[%clk 0:03:03]}  Rb8 {[%clk 0:02:51]} 14. a5 {[%clk 0:03:02]}  Nc7 {[%clk 0:02:46]} 15. Nd2 {[%clk 0:03:01]}  Ne5 {[%clk 0:02:44]} 16. Bh2 {[%clk 0:03:00]}  f5 {[%clk 0:02:43]} 17. f4 {[%clk 0:02:57]}  Nf7 {[%clk 0:02:42]} 18. e4 {[%clk 0:02:58]}  fxe4 {[%clk 0:02:39]} 19. Ndxe4 {[%clk 0:02:55]}  Ne8 {[%clk 0:02:29]} 20. Bf3 {[%clk 0:02:55]}  Bd7 {[%clk 0:02:27]} 21. f5 {[%clk 0:02:48]}  Bxf5 {[%clk 0:02:21]} 22. Rae1 {[%clk 0:02:46]}  Qc7 {[%clk 0:02:17]} 23. Ne2 {[%clk 0:02:42]}  Bxe4 {[%clk 0:02:10]} 24. Bxe4 {[%clk 0:02:42]}  Nf6 {[%clk 0:02:08]} 25. Bf3 {[%clk 0:02:42]}  Qxa5 {[%clk 0:02:05]} 26. Nf4 {[%clk 0:02:42]}  Qb4 {[%clk 0:01:56]} 27. Qc2 {[%clk 0:02:31]}  Ng5 {[%clk 0:01:46]} 28. Ne6 {[%clk 0:02:31]}  Nxe6 {[%clk 0:01:38]} 29. dxe6 {[%clk 0:02:30]}  Rfe8 {[%clk 0:01:35]} 30. Kh1 {[%clk 0:02:19]}  Rbd8 {[%clk 0:01:32]} 31. Re3 {[%clk 0:02:13]}  d5 {[%clk 0:01:30]} 32. Be5 {[%clk 0:01:51]}  Ne4 {[%clk 0:01:20]} 33. Bxe4 {[%clk 0:01:46]}  Bxe5 {[%clk 0:01:15]} 34. Bxg6 {[%clk 0:01:46]}  Qxb2 {[%clk 0:01:05]} 35. Bxh7+ {[%clk 0:01:39]}  Kh8 {[%clk 0:01:04]} 36. Qg6 {[%clk 0:01:38]}  Qd4 {[%clk 0:00:40]} 37. Qh5 {[%clk 0:01:31]} 1-0


[Site "https://www.chess.com"]

[Event "Titled Tuesday Blitz April 12 Early 2022"]
[White "Dronavalli, Harika"]
[Black "Tari, Aryan"]
[WhiteFideId "5015197"]
[BlackFideId "1510045"]
[WhiteElo "2382"]
[BlackElo "2567"]
[Result "1-0"]
[Round "11"]
[TimeControl "180+1"]
[Date "2022.04.12"]
[WhiteClock "0:00:13"]
[BlackClock "0:00:02"]

1. e4 {[%clk 0:03:00]}  c6 {[%clk 0:02:48]} 2. d4 {[%clk 0:03:00]}  d5 {[%clk 0:02:47]} 3. exd5 {[%clk 0:03:00]}  cxd5 {[%clk 0:02:47]} 4. c3 {[%clk 0:03:01]}  Nd7 {[%clk 0:02:36]} 5. Bf4 {[%clk 0:03:00]}  Ndf6 {[%clk 0:02:36]} 6. Nd2 {[%clk 0:02:59]}  e6 {[%clk 0:02:36]} 7. Ngf3 {[%clk 0:02:54]}  Bd6 {[%clk 0:02:37]} 8. Bb5+ {[%clk 0:02:50]}  Bd7 {[%clk 0:02:37]} 9. Bxd7+ {[%clk 0:02:48]}  Qxd7 {[%clk 0:02:37]} 10. Be5 {[%clk 0:02:47]}  Ne7 {[%clk 0:02:35]} 11. O-O {[%clk 0:02:44]}  O-O {[%clk 0:02:35]} 12. Re1 {[%clk 0:02:44]}  Ng6 {[%clk 0:02:34]} 13. g3 {[%clk 0:02:20]}  b5 {[%clk 0:02:34]} 14. a3 {[%clk 0:02:20]}  a5 {[%clk 0:02:33]} 15. h4 {[%clk 0:02:13]}  h6 {[%clk 0:02:31]} 16. Bxd6 {[%clk 0:02:06]}  Qxd6 {[%clk 0:02:31]} 17. Ne5 {[%clk 0:02:06]}  Ne7 {[%clk 0:02:29]} 18. b4 {[%clk 0:01:48]}  Rfc8 {[%clk 0:02:25]} 19. Re3 {[%clk 0:01:48]}  Rc7 {[%clk 0:02:18]} 20. Nb3 {[%clk 0:01:45]}  Nf5 {[%clk 0:02:15]} 21. Rf3 {[%clk 0:01:37]}  axb4 {[%clk 0:01:42]} 22. axb4 {[%clk 0:01:37]}  Rca7 {[%clk 0:01:43]} 23. Rxa7 {[%clk 0:01:34]}  Rxa7 {[%clk 0:01:44]} 24. Nc5 {[%clk 0:01:29]}  Ne4 {[%clk 0:01:43]} 25. Qd3 {[%clk 0:01:18]}  Qb8 {[%clk 0:01:12]} 26. Nxe4 {[%clk 0:01:09]}  dxe4 {[%clk 0:01:13]} 27. Qxe4 {[%clk 0:01:10]}  Qc8 {[%clk 0:01:12]} 28. h5 {[%clk 0:01:02]}  Ra3 {[%clk 0:01:04]} 29. Qc6 {[%clk 0:00:52]}  Qd8 {[%clk 0:00:55]} 30. g4 {[%clk 0:00:44]}  Qh4 {[%clk 0:00:44]} 31. Rxf5 {[%clk 0:00:34]}  Ra1+ {[%clk 0:00:43]} 32. Kg2 {[%clk 0:00:33]}  Qh1+ {[%clk 0:00:32]} 33. Kg3 {[%clk 0:00:33]}  Rg1+ {[%clk 0:00:24]} 34. Kf4 {[%clk 0:00:34]}  Qh2+ {[%clk 0:00:24]} 35. Ke3 {[%clk 0:00:34]}  Qh3+ {[%clk 0:00:22]} 36. Rf3 {[%clk 0:00:26]}  Qf1 {[%clk 0:00:16]} 37. Qa8+ {[%clk 0:00:21]}  Kh7 {[%clk 0:00:16]} 38. Qe4+ {[%clk 0:00:21]}  Kg8 {[%clk 0:00:17]} 39. Rxf7 {[%clk 0:00:14]}  Qe1+ {[%clk 0:00:16]} 40. Kf3 {[%clk 0:00:14]}  Qd1+ {[%clk 0:00:17]} 41. Qe2 {[%clk 0:00:14]}  Qc1 {[%clk 0:00:14]} 42. Qd3 {[%clk 0:00:13]}  Rd1 {[%clk 0:00:02]} 43. Rxg7+ {[%clk 0:00:13]} 1-0


[Site "https://www.chess.com"]

[Event "Titled Tuesday Blitz April 12 Early 2022"]
[White "Hnydiuk, Aleksander"]
[Black "Kosteniuk, Alexandra"]
[WhiteFideId "1109057"]
[BlackFideId "4128125"]
[WhiteElo "2374"]
[BlackElo "2469"]
[Result "1-0"]
[Round "11"]
[TimeControl "180+1"]
[Date "2022.04.13"]
[WhiteClock "0:00:01"]
[BlackClock "0:00:03"]

1. e4 {[%clk 0:03:00]}  c6 {[%clk 0:02:59]} 2. d4 {[%clk 0:03:00]}  d5 {[%clk 0:02:59]} 3. e5 {[%clk 0:03:00]}  c5 {[%clk 0:02:59]} 4. dxc5 {[%clk 0:02:58]}  e6 {[%clk 0:02:59]} 5. Bd3 {[%clk 0:02:53]}  Nc6 {[%clk 0:02:53]} 6. Nf3 {[%clk 0:02:45]}  Bxc5 {[%clk 0:02:53]} 7. O-O {[%clk 0:02:46]}  Nge7 {[%clk 0:02:53]} 8. Nc3 {[%clk 0:02:36]}  Ng6 {[%clk 0:02:51]} 9. Bg5 {[%clk 0:02:30]}  Qc7 {[%clk 0:02:46]} 10. Nb5 {[%clk 0:02:28]}  Qb8 {[%clk 0:02:45]} 11. c4 {[%clk 0:02:17]}  a6 {[%clk 0:02:09]} 12. cxd5 {[%clk 0:02:07]}  Ncxe5 {[%clk 0:02:09]} 13. Rc1 {[%clk 0:01:57]}  Nxd3 {[%clk 0:01:47]} 14. Qxd3 {[%clk 0:01:53]}  O-O {[%clk 0:01:42]} 15. Rxc5 {[%clk 0:01:43]}  axb5 {[%clk 0:01:43]} 16. d6 {[%clk 0:01:41]}  Bd7 {[%clk 0:01:38]} 17. Rc7 {[%clk 0:01:39]}  Bc6 {[%clk 0:01:38]} 18. Nd4 {[%clk 0:01:30]}  Ne5 {[%clk 0:01:32]} 19. Qg3 {[%clk 0:01:27]}  Ng6 {[%clk 0:01:21]} 20. h4 {[%clk 0:01:21]}  h5 {[%clk 0:01:04]} 21. Rc1 {[%clk 0:00:33]}  Bd5 {[%clk 0:00:50]} 22. d7 {[%clk 0:00:29]}  Qa7 {[%clk 0:00:50]} 23. Qe3 {[%clk 0:00:19]}  f6 {[%clk 0:00:40]} 24. Bh6 {[%clk 0:00:15]}  e5 {[%clk 0:00:27]} 25. Bxg7 {[%clk 0:00:10]}  Qxd4 {[%clk 0:00:15]} 26. Qxd4 {[%clk 0:00:10]}  exd4 {[%clk 0:00:16]} 27. Bxf8 {[%clk 0:00:11]}  Nxf8 {[%clk 0:00:10]} 28. Rc8 {[%clk 0:00:11]}  Kf7 {[%clk 0:00:09]} 29. d8=Q {[%clk 0:00:11]}  Rxc8 {[%clk 0:00:07]} 30. Qxc8 {[%clk 0:00:11]}  Ne6 {[%clk 0:00:07]} 31. Rc7+ {[%clk 0:00:10]}  Kg6 {[%clk 0:00:06]} 32. Re7 {[%clk 0:00:09]}  Nf4 {[%clk 0:00:05]} 33. Qe8+ {[%clk 0:00:08]}  Kf5 {[%clk 0:00:05]} 34. f3 {[%clk 0:00:06]}  d3 {[%clk 0:00:05]} 35. Qc8+ {[%clk 0:00:06]}  Kg6 {[%clk 0:00:05]} 36. Qc3 {[%clk 0:00:05]}  Bc4 {[%clk 0:00:03]} 37. Kf2 {[%clk 0:00:05]}  Nd5 {[%clk 0:00:02]} 38. Qe1 {[%clk 0:00:02]}  d2 {[%clk 0:00:02]} 39. Qxd2 {[%clk 0:00:02]}  Nxe7 {[%clk 0:00:02]} 40. b3 {[%clk 0:00:02]}  Be6 {[%clk 0:00:02]} 41. Qd3+ {[%clk 0:00:02]}  Kf7 {[%clk 0:00:02]} 42. Qxb5 {[%clk 0:00:02]}  Bd5 {[%clk 0:00:02]} 43. Qc5 {[%clk 0:00:02]}  Bc6 {[%clk 0:00:02]} 44. a4 {[%clk 0:00:02]}  Nd5 {[%clk 0:00:03]} 45. a5 {[%clk 0:00:02]}  Nf4 {[%clk 0:00:03]} 46. Qc4+ {[%clk 0:00:01]}  Ne6 {[%clk 0:00:03]} 47. Qc1 {[%clk 0:00:01]}  Nf4 {[%clk 0:00:03]} 48. Qxf4 {[%clk 0:00:01]} 1-0


[Site "https://www.chess.com"]

[Event "Titled Tuesday Blitz April 12 Early 2022"]
[White "Jakubowska, Anna"]
[Black "Ljukin, Sergei"]
[WhiteFideId "1121952"]
[BlackFideId "14102200"]
[WhiteElo "1924"]
[BlackElo "2312"]
[Result "1-0"]
[Round "11"]
[TimeControl "180+1"]
[Date "2022.04.13"]
[WhiteClock "0:00:07"]
[BlackClock "0:00:01"]

1. e4 {[%clk 0:02:54]}  e6 {[%clk 0:02:59]} 2. d4 {[%clk 0:02:53]}  d5 {[%clk 0:02:59]} 3. Nd2 {[%clk 0:02:53]}  Nf6 {[%clk 0:02:59]} 4. e5 {[%clk 0:02:53]}  Nfd7 {[%clk 0:03:00]} 5. Bd3 {[%clk 0:02:54]}  c5 {[%clk 0:03:00]} 6. c3 {[%clk 0:02:54]}  Nc6 {[%clk 0:03:01]} 7. Ne2 {[%clk 0:02:54]}  cxd4 {[%clk 0:03:00]} 8. cxd4 {[%clk 0:02:55]}  f6 {[%clk 0:03:01]} 9. exf6 {[%clk 0:02:56]}  Qxf6 {[%clk 0:03:01]} 10. Nf3 {[%clk 0:02:56]}  h6 {[%clk 0:03:01]} 11. O-O {[%clk 0:02:55]}  Bd6 {[%clk 0:03:01]} 12. Be3 {[%clk 0:02:52]}  O-O {[%clk 0:03:01]} 13. a3 {[%clk 0:02:51]}  Rd8 {[%clk 0:03:01]} 14. Rc1 {[%clk 0:02:51]}  Nf8 {[%clk 0:03:00]} 15. Bb1 {[%clk 0:02:50]}  Bd7 {[%clk 0:02:59]} 16. Qd2 {[%clk 0:02:44]}  Be8 {[%clk 0:02:59]} 17. Bf4 {[%clk 0:02:41]}  Bh5 {[%clk 0:02:55]} 18. Bxd6 {[%clk 0:02:29]}  Rxd6 {[%clk 0:02:55]} 19. Rc3 {[%clk 0:02:25]}  Re8 {[%clk 0:02:35]} 20. Nf4 {[%clk 0:02:16]}  Bxf3 {[%clk 0:02:32]} 21. Rxf3 {[%clk 0:02:15]}  Nxd4 {[%clk 0:02:24]} 22. Rg3 {[%clk 0:02:04]}  Nf5 {[%clk 0:02:06]} 23. Nh5 {[%clk 0:02:02]}  Qf7 {[%clk 0:01:52]} 24. Bxf5 {[%clk 0:01:37]}  Qxh5 {[%clk 0:01:50]} 25. Bg4 {[%clk 0:01:36]}  Qf7 {[%clk 0:01:47]} 26. Qxh6 {[%clk 0:01:05]}  gxh6 {[%clk 0:01:06]} 27. Bxe6+ {[%clk 0:01:05]}  Kh7 {[%clk 0:00:46]} 28. Bxf7 {[%clk 0:01:04]}  Re7 {[%clk 0:00:46]} 29. Bg8+ {[%clk 0:01:00]}  Kh8 {[%clk 0:00:45]} 30. Rd1 {[%clk 0:00:58]}  Ng6 {[%clk 0:00:27]} 31. h4 {[%clk 0:00:52]}  Nf4 {[%clk 0:00:27]} 32. Rg4 {[%clk 0:00:40]}  Ne2+ {[%clk 0:00:18]} 33. Kh2 {[%clk 0:00:39]}  d4 {[%clk 0:00:17]} 34. Bc4 {[%clk 0:00:37]}  h5 {[%clk 0:00:13]} 35. Rg5 {[%clk 0:00:27]}  Nf4 {[%clk 0:00:13]} 36. g3 {[%clk 0:00:22]}  Ne2 {[%clk 0:00:10]} 37. Rxh5+ {[%clk 0:00:19]}  Kg7 {[%clk 0:00:09]} 38. Rg5+ {[%clk 0:00:19]}  Kf6 {[%clk 0:00:09]} 39. Rg8 {[%clk 0:00:14]}  a6 {[%clk 0:00:07]} 40. Rb8 {[%clk 0:00:12]}  b5 {[%clk 0:00:07]} 41. Bd3 {[%clk 0:00:10]}  Rc6 {[%clk 0:00:07]} 42. Bxe2 {[%clk 0:00:08]}  Rxe2 {[%clk 0:00:06]} 43. Rxd4 {[%clk 0:00:09]}  Rxf2+ {[%clk 0:00:06]} 44. Kh3 {[%clk 0:00:10]}  Rxb2 {[%clk 0:00:06]} 45. Rf8+ {[%clk 0:00:08]}  Kg7 {[%clk 0:00:05]} 46. Rff4 {[%clk 0:00:07]}  Rb3 {[%clk 0:00:05]} 47. a4 {[%clk 0:00:08]}  bxa4 {[%clk 0:00:05]} 48. Rxa4 {[%clk 0:00:08]}  Rcc3 {[%clk 0:00:04]} 49. Rg4+ {[%clk 0:00:07]}  Kh7 {[%clk 0:00:03]} 50. Rxa6 {[%clk 0:00:08]}  Rc1 {[%clk 0:00:03]} 51. Rf4 {[%clk 0:00:07]}  Rb7 {[%clk 0:00:02]} 52. Raf6 {[%clk 0:00:07]}  Rc3 {[%clk 0:00:01]} 53. Rf7+ {[%clk 0:00:07]} 1-0


[Site "https://www.chess.com"]